fUST/lending_fUST_20250930
["ID","MTS","AMOUNT","RATE_DAILY","PERIOD"]
[388472505,1759183826920,-500.0,0.00021629,2]
[388472506,1759183826989,-500.0,0.00021629,2]
[388472507,1759183827056,-500.0,0.00021629,2]
[388472508,1759183827127,-500.0,0.00021629,2]
[388472509,1759183827194,-500.0,0.00021629,2]
[388472510,1759183827267,-500.0,0.00021629,2]
[388472511,1759183827340,-500.0,0.00021629,2]
[388472512,1759183827406,-541.54057552,0.00021629,2]
[388472513,1759183829163,-273.06380756,0.00021629,2]
[388472514,1759183829224,-184.14768666,0.00021629,2]
[388472515,1759183829234,-357.39288886,0.00021629,2]
[388472516,1759183829287,-142.60711114,0.00021629,2]
[388472517,1759183829296,-228.1941227,0.00021629,2]
[388472542,1759183832561,-236.87227907,0.00021629,2]
[388472544,1759183832571,-204.65662142,0.00021798,2]
[388472546,1759183832580,-294.01,0.00021807,3]
[388472548,1759183832590,-882.05,0.00021807,3]
[388472550,1759183832599,-1200.0,0.00021816,2]
[388472552,1759183832608,-50401.65170302,0.00021817,2]
[388472560,1759183832681,-16456.95837412,0.00021817,2]
[388472777,1759183835399,160.0,0.0003,120]
[388472916,1759183840355,-493.64746722,0.00021817,2]
[388472917,1759183840366,-16027.94001922,0.00021817,2]
[388472926,1759183840482,-0.0250262,0.00021817,2]
[388472955,1759183844538,-494.3173247,0.00021817,2]
[388473013,1759183846646,-667.36064083,0.00021817,2]
[388473044,1759183846966,-1403.59660259,0.00021817,2]
[388473046,1759183846978,-1003.727617,0.00021817,2]
[388473052,1759183864971,-227.34783864,0.00021629,2]
[388473053,1759183903147,160.179414,0.000245,30]
[388473054,1759183923120,445.3827707,0.00020843,2]
[388473059,1759184091251,1000.0,0.00021525,2]
[388473060,1759184154216,160.0,0.0003,120]
[388473061,1759184165748,-655.95857453,0.00021716,2]
[388473062,1759184165815,-300.0,0.00021716,2]
[388473063,1759184166063,-6642.71008024,0.00021717,2]
[388473064,1759184166245,-10000.01,0.00021717,2]
[388473065,1759184166420,-10000.01,0.00021717,2]
[388473066,1759184166496,-10000.01,0.00021717,2]
[388473067,1759184166928,-10000.01,0.00021717,2]
[388473068,1759184167119,-10000.01,0.00021717,2]
[388473069,1759184167222,-10000.01,0.00021717,2]
[388473070,1759184167388,-10000.01,0.00021717,2]
[388473071,1759184167645,-10000.01,0.00021717,2]
[388473072,1759184167826,-10000.01,0.00021717,2]
[388473073,1759184195577,-4971.73,0.00021707,3]
[388473074,1759184195707,-56.55,0.00021707,3]
[388473075,1759184195778,-2502.81,0.00021707,3]
[388473076,1759184195847,-1279.68,0.00021707,3]
[388473077,1759184195933,-293.09331077,0.00021716,2]
[388473078,1759184196036,-450.95468939,0.00021716,2]
[388473079,1759184196157,-446.93399968,0.00021716,2]
[388473080,1759184196424,-53.06600032,0.00021716,2]
[388473081,1759184196497,-500.0,0.00021716,2]
[388473082,1759184196560,-500.0,0.00021716,2]
[388473083,1759184196626,-500.0,0.00021716,2]
[388473084,1759184196699,-282.12044844,0.00021716,2]
[388473085,1759184196762,-295.86066346,0.00021716,2]
[388473086,1759184196822,-439.69016603,0.00021716,2]
[388473087,1759184196889,-557.55405604,0.00021716,2]
[388473088,1759184196953,-500.0,0.00021716,2]
[388473089,1759184197020,-500.0,0.00021716,2]
[388473090,1759184197087,-497.21243529,0.00021716,2]
[388473091,1759184198387,-77.9811119,0.00021717,2]
[388473092,1759184198457,-749.00246084,0.00021717,2]
[388473093,1759184198648,-10000.01,0.00021717,2]
[388473094,1759184199009,-10000.01,0.00021717,2]
[388473095,1759184199128,-10000.01,0.00021717,2]
[388473096,1759184199209,-10000.01,0.00021717,2]
[388473097,1759184199284,-10000.01,0.00021717,2]
[388473098,1759184199384,-10000.01,0.00021717,2]
[388473099,1759184199442,-10000.01,0.00021717,2]
[388473100,1759184205820,-639.84,0.00021707,3]
[388473101,1759184205967,-8720.33,0.00021717,2]
[388473102,1759184255646,-319.92,0.00021707,3]
[388473103,1759184255715,-159.96,0.00021707,3]
[388473104,1759184255796,-479.92,0.00021707,3]
[388473105,1759184255870,-1305.9,0.00021707,3]
[388473106,1759184255951,-300.0,0.00021715,2]
[388473107,1759184256019,-1200.0,0.00021715,2]
[388473108,1759184256084,-295.86066346,0.00021716,2]
[388473109,1759184256150,-500.0,0.00021716,2]
[388473110,1759184256211,-376.88867308,0.00021716,2]
[388473111,1759184256681,-123.11132692,0.00021716,2]
[388473112,1759184256752,-500.0,0.00021716,2]
[388473113,1759184256817,-500.0,0.00021716,2]
[388473114,1759184256875,-488.54462892,0.00021716,2]
[388473115,1759184256949,-489.34420571,0.00021716,2]
[388473116,1759184257014,-500.0,0.00021716,2]
[388473117,1759184257074,-500.0,0.00021716,2]
[388473118,1759184257138,-500.0,0.00021716,2]
[388473119,1759184257217,-474.53890015,0.00021716,2]
[388473120,1759184257274,-585.29924229,0.00021716,2]
[388473121,1759184257333,-178.33339202,0.00021716,2]
[388473122,1759184257556,-321.66660798,0.00021716,2]
[388473123,1759184257615,-260.45893947,0.00021716,2]
[388473124,1759184257673,-197.27587898,0.00021716,2]
[388473125,1759184257731,-500.0,0.00021716,2]
[388473126,1759184257789,-500.0,0.00021716,2]
[388473127,1759184257848,-165.10664569,0.00021716,2]
[388473128,1759184257914,-500.0,0.00021716,2]
[388473129,1759184257981,-500.0,0.00021716,2]
[388473130,1759184258057,-500.0,0.00021716,2]
[388473131,1759184258124,-500.0,0.00021716,2]
[388473132,1759184258191,-273.65373504,0.00021716,2]
[388473133,1759184258252,-160.0,0.00021717,2]
[388473134,1759184258627,-2722.13,0.00021707,3]
[388473135,1759184258689,-221.28,0.00021707,10]
[388473136,1759184260490,-408.55286254,0.0002149,13]
[388473137,1759184260500,-270.29611842,0.00021716,2]
[388473138,1759184260510,-8091.67643947,0.00021717,2]
[388473139,1759184260578,-2722.13,0.00021717,2]
[388473140,1759184260670,-221.28,0.00021717,2]
[388473141,1759184260750,-4113.19,0.00021717,2]
[388473142,1759184260806,-10000.01,0.00021717,2]
[388473143,1759184260926,-10000.01,0.00021717,2]
[388473144,1759184260994,-10000.01,0.00021717,2]
[388473145,1759184261066,-10000.01,0.00021717,2]
[388473146,1759184295689,-1152.7648752,0.0002084,2]
[388473147,1759184295752,-184.28372171,0.000217,2]
[388473148,1759184295824,-217.46,0.00021707,10]
[388473149,1759184295887,-300.0,0.00021716,2]
[388473150,1759184296172,-6290.99280618,0.00021717,2]
[388473151,1759184296223,-10000.01,0.00021717,2]
[388473152,1759184315980,-223.516541,0.00020814,2]
[388473153,1759184316038,-4552.976918,0.0002149,13]
[388473154,1759184316153,-447.023082,0.0002149,13]
[388473155,1759184316259,-285.58,0.00021707,10]
[388473156,1759184316322,-237.98,0.00021707,10]
[388473157,1759184316481,-8952.89,0.00021717,2]
[388473158,1759184316564,-10000.01,0.00021717,2]
[388473159,1759184316725,-10000.01,0.00021717,2]
[388473160,1759184316842,-10000.01,0.00021717,2]
[388473161,1759184317040,-10000.01,0.00021717,2]
[388473162,1759184317231,-10000.01,0.00021717,2]
[388473163,1759184317433,-10000.01,0.00021717,2]
[388473164,1759184319122,-185.46340084,0.00020606,13]
[388473165,1759184323347,-240.11461042,0.00020606,13]
[388473166,1759184325316,-176.64060893,0.00020606,13]
[388473167,1759184325906,-4397.78137981,0.00020606,13]
[388473168,1759184326052,-1204.44724038,0.00021717,2]
[388473169,1759184326103,-10000.01,0.00021717,2]
[388473170,1759184326246,-10000.01,0.00021717,2]
[388473171,1759184327502,-275.70701699,0.000204,13]
[388473172,1759184329954,-183.94297066,0.000204,13]
[388473173,1759184332992,-300.0,0.000204,13]
[388473174,1759184335553,-171.0,0.000204,13]
[388473175,1759184335944,-1444.03548579,0.000204,13]
[388473176,1759184349843,5000.0,0.00019229,2]
[388473177,1759184350383,930.64998765,0.000204,2]
[388473178,1759184402227,-245.48,0.00020779,2]
[388473179,1759184407251,-54.52,0.00020779,2]
[388473180,1759184407274,-130.2370488,0.00020779,2]
[388473181,1759184410367,-169.7629512,0.00020779,2]
[388473182,1759184410389,-30.03188317,0.00020779,2]
[388473183,1759184413507,-269.96811683,0.00020779,2]
[388473184,1759184413529,-99.22643753,0.00020779,2]
[388473185,1759184415039,-200.77356247,0.00020779,2]
[388473186,1759184415062,-254.81400576,0.00020779,2]
[388473187,1759184417151,-481.41985255,0.00020779,2]
[388473188,1759184420201,-463.76614169,0.00020779,2]
[388473189,1759184420224,-351.85199585,0.0002078,2]
[388473191,1759184423245,-405.76413012,0.0002078,2]
[388473192,1759184423355,1181.28904077,0.000204,2]
[388473193,1759184423415,754.94481754,0.000204,2]
[388473194,1759184425316,-160.0,0.0002078,2]
[388473195,1759184425340,-17.59204326,0.0002078,2]
[388473196,1759184428255,-341.54319708,0.0002078,2]
[388473197,1759184431404,-300.0,0.0002078,2]
[388473198,1759184434458,-480.0,0.0002078,2]
[388473199,1759184436051,-177.569784,0.00020579,2]
[388473200,1759184436076,-162.4131672,0.0002078,2]
[388473201,1759184437914,-203.26568249,0.0002078,2]
[388473202,1759184440194,-385.83487905,0.0002078,2]
[388473203,1759184445546,-577.79248738,0.0002078,2]
[388473204,1759184445619,3063.76614169,0.000204,2]
[388473205,1759184447562,-329.46483437,0.0002078,2]
[388473206,1759184450019,-219.13588773,0.0002078,2]
[388473207,1759184451684,-223.73,0.0002078,2]
[388473208,1759184453838,-480.0,0.0002078,2]
[388473209,1759184455339,-480.0,0.0002078,2]
[388473210,1759184457070,-41.61169547,0.0002078,2]
[388473211,1759184457091,-343.55058677,0.000208,2]
[388473212,1759184459266,-156.44941323,0.000208,2]
[388473213,1759184493410,-157.32309597,0.00020778,2]
[388473214,1759184494644,-152.0,0.00020778,2]
[388473215,1759184497444,-271.5410163,0.00020778,2]
[388473216,1759184500972,-300.0,0.00020778,2]
[388473217,1759184503666,-160.23361501,0.00020778,2]
[388473218,1759184506700,-300.0,0.00020778,2]
[388473219,1759184508362,-424.73732778,0.00020778,2]
[388473220,1759184511904,-280.20516563,0.00020778,2]
[388473221,1759184514896,-310.02884923,0.00020778,2]
[388473227,1759184536806,160.233615,0.00020372,2]
[388473228,1759184625696,300.0,0.000204,2]
[388473229,1759184627458,-153.2787178,0.00020531,5]
[388473230,1759184636036,300.0,0.000204,2]
[388473231,1759184646934,300.0,0.000204,2]
[388473232,1759184654167,453.63817819,0.00020014,4]
[388473233,1759184654224,453.63817819,0.00020214,4]
[388473234,1759184657545,300.0,0.000204,2]
[388473235,1759184670683,2376.46726538,0.000204,2]
[388473236,1759184673751,-191.55058677,0.00020414,4]
[388473237,1759184676729,-152.0,0.00020414,4]
[388473238,1759184679494,-110.08759142,0.00020414,4]
[388473239,1759184679516,-300.0,0.000205,2]
[388473240,1759184693719,497.59204326,0.000204,2]
[388473241,1759184694906,-300.0,0.000205,2]
[388473243,1759184731685,-180.0,0.000205,2]
[388473246,1759184735335,18281.5537159,0.00033558,120]
[388473247,1759184738885,480.0,0.000204,2]
[388473248,1759184740483,-100.86411227,0.000205,2]
[388473263,1759184920645,4838.67433498,0.000204,2]
[388473264,1759184920709,161.32566502,0.000204,2]
[388473265,1759184921250,-204.71806207,0.00020514,2]
[388473266,1759184927555,-159.2550529,0.000206,2]
[388473275,1759184935595,329.46483437,0.000206,2]
[388473276,1759184945445,285.30216587,0.00019786,2]
[388473277,1759184965122,-316.01827897,0.000207,2]
[388473297,1759185032631,-500.0,0.000207,2]
[388473298,1759185032640,-160.0,0.00020777,2]
[388473299,1759185032650,-363.59,0.0002098,10]
[388473300,1759185032659,-826.37,0.0002098,10]
[388473301,1759185032668,-300.0,0.00020986,2]
[388473302,1759185032677,-300.0,0.00020986,2]
[388473303,1759185032686,-300.0,0.00020986,2]
[388473304,1759185032695,-300.0,0.00020986,2]
[388473305,1759185032704,-1200.0,0.00020986,2]
[388473306,1759185032713,-1200.0,0.00020987,2]
[388473307,1759185032722,-205.16531754,0.00020989,2]
[388473308,1759185032731,-500.0,0.00020989,2]
[388473309,1759185032740,-315.66828258,0.00020989,2]
[388473310,1759185032750,-597.48431391,0.00020989,2]
[388473311,1759185032760,-500.0,0.00020989,2]
[388473312,1759185032769,-500.0,0.00020989,2]
[388473313,1759185032778,-500.0,0.00020989,2]
[388473314,1759185032787,-500.0,0.00020989,2]
[388473315,1759185032796,-100000.0,0.0002099,2]
[388473316,1759185032805,-633.092,0.00021616,2]
[388473319,1759185032814,-178.643,0.00021616,2]
[388473321,1759185032823,-151.0,0.000217,4]
[388473324,1759185032832,-189.40172226,0.00021705,3]
[388473326,1759185032841,-6319.78,0.00021705,3]
[388473328,1759185032850,-3159.89,0.00021705,3]
[388473330,1759185032858,-1579.94,0.00021705,3]
[388473332,1759185032867,-789.97,0.00021707,3]
[388473334,1759185032875,-394.99,0.00021707,3]
[388473335,1759185032884,-197.49,0.00021707,3]
[388473337,1759185032893,-592.5,0.00021707,3]
[388473339,1759185032902,-1072.98588114,0.00021716,2]
[388473341,1759185032911,-32213.07986099,0.00021717,2]
[388473343,1759185032920,-1121.89120068,0.00021717,2]
[388473345,1759185032930,-168.0,0.00021753,2]
[388473347,1759185032938,-168.0,0.00021775,2]
[388473349,1759185032948,-168.0,0.00021785,2]
[388473351,1759185032957,-1000.0,0.00021796,2]
[388473353,1759185032966,-151.0,0.000218,3]
[388473355,1759185032975,-2851.07009809,0.00021817,2]
[388473383,1759185033235,-355.96542209,0.00020989,2]
[388473385,1759185033244,-302.95507291,0.00021817,2]
[388473389,1759185033269,-500.0,0.00020989,2]
[388473391,1759185033278,-500.0,0.00020989,2]
[388473393,1759185033287,-1949.91167228,0.00021817,2]
[388473395,1759185033296,-6345.86793411,0.00021817,2]
[388473397,1759185033305,-6345.86793411,0.00021886,2]
[388473399,1759185033314,-151.0,0.000219,4]
[388473400,1759185033323,-500.0,0.00021904,2]
[388473402,1759185033332,-168.56119286,0.00021904,2]
[388473403,1759185033341,-1000.0,0.00021904,2]
[388473404,1759185033349,-151.0,0.00021904,2]
[388473405,1759185033361,-483.99922484,0.00021904,2]
[388473406,1759185033370,-200.0,0.00021904,2]
[388473408,1759185033379,-200.0,0.00021904,2]
[388473410,1759185033388,-200.0,0.00021904,2]
[388473411,1759185033398,-200.0,0.00021904,2]
[388473413,1759185033407,-250.0,0.00021904,2]
[388473415,1759185033415,-250.0,0.00021904,2]
[388473417,1759185033424,-250.0,0.00021904,2]
[388473419,1759185033433,-250.0,0.00021904,2]
[388473421,1759185033444,-250.0,0.00021904,2]
[388473422,1759185033454,-250.0,0.00021904,2]
[388473424,1759185033462,-250.0,0.00021904,2]
[388473426,1759185033471,-380.35847049,0.00021904,2]
[388473428,1759185033480,-500.0,0.00021904,2]
[388473430,1759185033488,-500.0,0.00021904,2]
[388473432,1759185033497,-500.0,0.00021904,2]
[388473434,1759185033506,-500.0,0.00021904,2]
[388473436,1759185033515,-500.0,0.00021904,2]
[388473438,1759185033523,-500.0,0.00021904,2]
[388473440,1759185033532,-500.0,0.00021904,2]
[388473441,1759185033541,-500.0,0.00021904,2]
[388473443,1759185033550,-500.0,0.00021904,2]
[388473444,1759185033559,-500.0,0.00021904,2]
[388473445,1759185033568,-500.0,0.00021904,2]
[388473446,1759185033577,-151.0,0.00021904,2]
[388473447,1759185033585,-151.0,0.00021904,2]
[388473448,1759185033594,-500.0,0.00021904,2]
[388473449,1759185033603,-151.0,0.00021904,2]
[388473450,1759185033612,-151.0,0.00021904,2]
[388473451,1759185033621,-500.0,0.00021904,2]
[388473452,1759185033630,-151.0,0.00021904,2]
[388473453,1759185033639,-151.0,0.00021904,2]
[388473454,1759185033649,-500.0,0.00021904,2]
[388473455,1759185033659,-500.0,0.00021904,2]
[388473456,1759185033668,-500.0,0.00021904,2]
[388473457,1759185033677,-500.0,0.00021904,2]
[388473458,1759185033686,-151.0,0.00021904,2]
[388473459,1759185033694,-151.0,0.00021904,2]
[388473460,1759185033704,-151.0,0.00021904,2]
[388473461,1759185033713,-151.0,0.00021904,2]
[388473462,1759185033722,-151.0,0.00021904,2]
[388473463,1759185033731,-151.0,0.00021904,2]
[388473464,1759185033740,-151.0,0.00021904,2]
[388473465,1759185033749,-500.0,0.00021904,2]
[388473466,1759185033758,-500.0,0.00021904,2]
[388473467,1759185033767,-500.0,0.00021904,2]
[388473468,1759185033776,-151.0,0.00021904,2]
[388473469,1759185033785,-500.0,0.00021904,2]
[388473470,1759185033793,-151.0,0.00021904,2]
[388473471,1759185033802,-151.0,0.00021904,2]
[388473472,1759185033810,-151.0,0.00021904,2]
[388473473,1759185033819,-151.0,0.00021904,2]
[388473474,1759185033828,-151.0,0.00021904,2]
[388473475,1759185033837,-158.20408301,0.00021904,2]
[388473476,1759185033846,-500.0,0.00021904,2]
[388473477,1759185033855,-500.0,0.00021904,2]
[388473478,1759185033864,-1778.0,0.00021904,2]
[388473479,1759185033873,-151.0,0.00021904,2]
[388473480,1759185033882,-500.0,0.00021904,2]
[388473481,1759185033891,-500.0,0.00021904,2]
[388473482,1759185033900,-151.0,0.00021904,2]
[388473483,1759185033909,-500.0,0.00021904,2]
[388473484,1759185033918,-151.0,0.00021904,2]
[388473485,1759185033927,-151.0,0.00021904,2]
[388473486,1759185033936,-151.0,0.00021904,2]
[388473487,1759185033945,-500.0,0.00021904,2]
[388473488,1759185033954,-151.0,0.00021904,2]
[388473489,1759185033963,-151.18199785,0.00021904,2]
[388473490,1759185033972,-1000.0,0.00021916,2]
[388473491,1759185033981,-480.0,0.00021917,2]
[388473492,1759185033990,-197.0294047,0.00021917,2]
[388473494,1759185038576,-33526.90787973,0.00020987,2]
[388473495,1759185038588,-16473.09212027,0.00020987,2]
[388473496,1759185038597,-207.36537351,0.00020989,2]
[388473498,1759185038606,-200.0,0.00021785,10]
[388473499,1759185038615,-200.0,0.00021785,10]
[388473500,1759185038623,-200.0,0.00021785,10]
[388473501,1759185038632,-200.0,0.00021785,10]
[388473502,1759185038641,-500.0,0.00021904,2]
[388473503,1759185038650,-500.0,0.00021904,2]
[388473504,1759185038659,-500.0,0.00021904,2]
[388473505,1759185038668,-500.0,0.00021904,2]
[388473506,1759185038677,-282.9705953,0.00021917,2]
[388473507,1759185038686,-480.0,0.00021917,2]
[388473508,1759185038695,-480.0,0.00021917,2]
[388473509,1759185038704,-480.0,0.00021917,2]
[388473510,1759185038712,-480.0,0.00021917,2]
[388473511,1759185038722,-503.59871345,0.00021917,2]
[388473512,1759185038730,-625.4247069,0.00021917,3]
[388473513,1759185038739,-480.0,0.00021917,2]
[388473514,1759185038748,-480.0,0.00021917,2]
[388473515,1759185038757,-480.0,0.00021917,2]
[388473516,1759185038766,-480.0,0.00021917,2]
[388473517,1759185038775,-480.0,0.00021917,2]
[388473518,1759185038785,-480.0,0.00021917,2]
[388473519,1759185038794,-480.0,0.00021917,2]
[388473520,1759185038802,-480.0,0.00021917,2]
[388473521,1759185038811,-480.0,0.00021917,2]
[388473522,1759185038820,-480.0,0.00021917,2]
[388473523,1759185038829,-480.0,0.00021917,2]
[388473524,1759185038838,-480.0,0.00021917,2]
[388473525,1759185038847,-480.0,0.00021917,2]
[388473526,1759185038855,-480.0,0.00021917,2]
[388473527,1759185038865,-480.0,0.00021917,2]
[388473528,1759185038873,-480.0,0.00021917,2]
[388473529,1759185038882,-480.0,0.00021917,2]
[388473530,1759185038891,-480.0,0.00021917,2]
[388473531,1759185038900,-624.00053302,0.00021917,2]
[388473532,1759185038911,-480.0,0.00021917,2]
[388473533,1759185038919,-480.0,0.00021917,2]
[388473534,1759185038928,-482.59,0.00021917,2]
[388473535,1759185038937,-480.0,0.00021917,2]
[388473536,1759185038946,-480.0,0.00021917,2]
[388473537,1759185038954,-480.0,0.00021917,2]
[388473538,1759185038963,-151.0,0.00021917,2]
[388473539,1759185038971,-151.0,0.00021917,2]
[388473540,1759185038980,-512.29,0.00021917,2]
[388473541,1759185038989,-480.0,0.00021917,2]
[388473542,1759185038998,-151.0,0.00021917,2]
[388473543,1759185039007,-480.0,0.00021917,2]
[388473544,1759185039017,-480.0,0.00021917,2]
[388473545,1759185039026,-480.0,0.00021917,2]
[388473546,1759185039035,-480.0,0.00021917,2]
[388473547,1759185039044,-480.0,0.00021917,2]
[388473548,1759185039053,-480.0,0.00021917,2]
[388473549,1759185039065,-480.0,0.00021917,2]
[388473550,1759185039075,-480.0,0.00021917,2]
[388473551,1759185039084,-480.0,0.00021917,2]
[388473552,1759185039093,-480.0,0.00021917,2]
[388473553,1759185039103,-496.99,0.00021917,2]
[388473554,1759185039112,-480.0,0.00021917,2]
[388473555,1759185039121,-480.0,0.00021917,2]
[388473556,1759185039130,-480.0,0.00021917,2]
[388473557,1759185039139,-480.0,0.00021917,2]
[388473558,1759185039148,-480.0,0.00021917,2]
[388473559,1759185039156,-480.0,0.00021917,2]
[388473560,1759185039166,-151.0,0.00021917,2]
[388473561,1759185039175,-249.11112423,0.00021917,2]
[388473562,1759185039184,-480.0,0.00021917,2]
[388473563,1759185039193,-480.0,0.00021917,2]
[388473564,1759185039202,-480.0,0.00021917,2]
[388473565,1759185039210,-501.46,0.00021917,2]
[388473566,1759185039220,-480.0,0.00021917,2]
[388473567,1759185039229,-480.0,0.00021917,2]
[388473568,1759185039238,-480.0,0.00021917,2]
[388473569,1759185039247,-480.0,0.00021917,2]
[388473570,1759185039256,-480.0,0.00021917,2]
[388473571,1759185039265,-480.0,0.00021917,2]
[388473572,1759185039274,-480.0,0.00021917,2]
[388473573,1759185039283,-480.0,0.00021917,2]
[388473574,1759185039292,-480.0,0.00021917,2]
[388473575,1759185039301,-360.35931492,0.00021917,2]
[388473576,1759185039310,-480.0,0.00021917,2]
[388473577,1759185039318,-480.0,0.00021917,2]
[388473578,1759185039327,-480.0,0.00021917,2]
[388473579,1759185039336,-480.0,0.00021917,2]
[388473580,1759185039345,-480.0,0.00021917,2]
[388473581,1759185039357,-622.9,0.00021917,2]
[388473582,1759185039366,-622.9,0.00021917,2]
[388473583,1759185039374,-622.9,0.00021917,2]
[388473584,1759185039384,-151.0,0.00021917,2]
[388473585,1759185039393,-622.9,0.00021917,2]
[388473586,1759185039402,-622.9,0.00021917,2]
[388473587,1759185039411,-622.9,0.00021917,2]
[388473588,1759185039420,-622.9,0.00021917,2]
[388473589,1759185039429,-622.9,0.00021917,2]
[388473590,1759185039613,-480.0,0.00021917,2]
[388473591,1759185039623,-622.9,0.00021917,2]
[388473592,1759185039633,-622.9,0.00021917,2]
[388473593,1759185039642,-622.9,0.00021917,2]
[388473594,1759185039651,-622.9,0.00021917,2]
[388473595,1759185039660,-622.9,0.00021917,2]
[388473596,1759185039668,-622.9,0.00021917,2]
[388473597,1759185039677,-622.9,0.00021917,2]
[388473598,1759185039686,-622.9,0.00021917,2]
[388473599,1759185039696,-622.9,0.00021917,2]
[388473600,1759185039705,-622.9,0.00021917,2]
[388473601,1759185039713,-480.0,0.00021917,2]
[388473602,1759185039722,-622.9,0.00021917,2]
[388473603,1759185039731,-622.9,0.00021917,2]
[388473604,1759185039740,-622.9,0.00021917,2]
[388473605,1759185039749,-151.0,0.00021917,2]
[388473606,1759185039759,-622.9,0.00021917,2]
[388473607,1759185039768,-622.9,0.00021917,2]
[388473608,1759185039776,-623.12130718,0.00021917,2]
[388473609,1759185039785,-480.0,0.00021917,2]
[388473610,1759185039795,-151.0,0.00021917,2]
[388473611,1759185039804,-151.0,0.00021917,2]
[388473612,1759185039814,-480.0,0.00021917,2]
[388473613,1759185039823,-480.0,0.00021917,2]
[388473614,1759185039832,-480.0,0.00021917,2]
[388473615,1759185039840,-480.0,0.00021917,2]
[388473616,1759185039850,-480.0,0.00021917,2]
[388473617,1759185039859,-151.0,0.00021917,2]
[388473618,1759185039868,-480.0,0.00021917,2]
[388473619,1759185039876,-480.0,0.00021917,2]
[388473620,1759185039885,-480.0,0.00021917,2]
[388473621,1759185039895,-151.0,0.00021917,2]
[388473622,1759185039904,-480.0,0.00021917,2]
[388473623,1759185039914,-480.0,0.00021917,2]
[388473624,1759185039923,-482.26776614,0.00021917,2]
[388473625,1759185039932,-480.0,0.00021917,2]
[388473626,1759185039942,-534.48223388,0.00021917,2]
[388473627,1759185039951,-480.0,0.00021917,2]
[388473628,1759185039960,-151.0,0.00021917,2]
[388473629,1759185039969,-480.0,0.00021917,2]
[388473630,1759185039978,-151.0,0.00021917,2]
[388473631,1759185039987,-480.0,0.00021917,2]
[388473632,1759185039997,-480.0,0.00021917,2]
[388473633,1759185040006,-151.0,0.00021917,2]
[388473634,1759185040016,-480.0,0.00021917,2]
[388473635,1759185040025,-480.0,0.00021917,2]
[388473636,1759185040035,-480.0,0.00021917,2]
[388473637,1759185040044,-480.0,0.00021917,2]
[388473639,1759185040053,-480.0,0.00021917,2]
[388473640,1759185040062,-529.66,0.00021917,2]
[388473642,1759185040071,-480.0,0.00021917,2]
[388473644,1759185040080,-480.0,0.00021917,2]
[388473646,1759185040089,-480.0,0.00021917,2]
[388473647,1759185040098,-480.0,0.00021917,2]
[388473648,1759185040107,-480.0,0.00021917,2]
[388473649,1759185040115,-458.11588662,0.00021917,2]
[388473650,1759185040124,-644.35,0.00021917,2]
[388473651,1759185040133,-480.0,0.00021917,2]
[388473652,1759185040142,-480.0,0.00021917,2]
[388473653,1759185040151,-480.0,0.00021917,2]
[388473654,1759185040160,-480.0,0.00021917,2]
[388473655,1759185040169,-30.7308143,0.00021917,2]
[388473675,1759185040988,-200.0,0.00021785,10]
[388473676,1759185040997,-58.14628366,0.00021785,10]